Cogmind - Beta 10.2 @@@ ROGUE MODE // 2021.01.22 @ 00:27:27 Player: WayneKnight Result: Destroyed by M Guard with Graviton Cannon Performance ------------- Evolutions (9) 4500 Regions Visited (35) 7000 Robots Destroyed (207) 1035 Value Destroyed (7440) 7440 Prototype IDs (97) 1940 Alien Tech Used (5) 1000 Bonus (15148) 15148 TOTAL SCORE: 38063 Bonus ------- High Alert Combat Kills 103 Follower Combat Kills 158 Met Data Miner 300 Met Imprinter 300 Met Zhirov 300 Met Warlord at Base 500 MAIN.C Attacked Warlord 500 Met Warlord at Research 2000 Invited to Help at Command 2000 Met Sigix 2000 Met MAIN.C 5000 Met Warlord at Command 2000 Friendly Fire -13 Cogmind --------- Core Integrity 0/1600 Matter 240/300 Energy 30/100 System Corruption 18% Temperature Cool (0) Movement Core (50) Location -1/Command Parts ------- > --- POWER (2) -------- (None) > --- PROPULSION (6) --- (None) > --- UTILITY (15) ----- Experimental Signal Interpreter Advanced Hacking Suite Improved System Shield > --- WEAPON (2) ------- (None) > --- INVENTORY (4) ---- Experimental Sensor Array Advanced ECM Suite Enhanced Nova Cannon Molecular Scythe Peak State ------------ > --- POWER ------------ Heavy Antimatter Reactor Light Quantum Reactor > --- PROPULSION ------- Impulse Thruster Array Improved Q-thruster Improved Q-thruster Cooled Q-thruster Experimental Q-thruster > --- UTILITY ---------- 2N-1CE's Frost Array Large Storage Unit Large Storage Unit Experimental Signal Interpreter Improved Cloaking Device Experimental Cloaking Device Experimental Propulsion Shielding Centrium Light Armor Plating Advanced Shield Generator Hacking Suite Advanced Hacking Suite System Mapper System Shield Improved System Shield Experimental System Shield > --- WEAPON ----------- Sigix Broadsword > --- INVENTORY -------- Micro Fission Core Cooled Nuclear Pulse Thruster Cooled Field Propulsion Drive Cooled Impulse Thruster Impulse Thruster Array Long-range Sensor Array Experimental Sensor Array Advanced ECM Suite Damper Plating Enhanced Nova Cannon Hellfire Missile Launcher Molecular Scythe [Rating: 201] Favorites ----------- Power Micro Fission Core Engine Improved Ion Engine Power Core Micro Fission Core Reactor Light Quantum Reactor Propulsion Light Treads Treads Light Treads Leg Aluminum Leg Wheel Armored Huge Wheel Hover Unit Improved Airjet Flight Unit Field Propulsion Array Utility Large Storage Unit Device Experimental Sensor Array Storage Large Storage Unit Processor Advanced Signal Interpreter Hackware Hacking Suite Protection Improved Medium Armor Plating Artifact Phase Armor Weapon Improved Assault Rifle Energy Gun EM Pulse Gun Energy Cannon Heavy Plasma Cannon Ballistic Gun Improved Assault Rifle Launcher Improved Proton Missile Launcher Slashing Weapon Greatsword Piercing Weapon Lance Build | -11 -10 -10 -9 -9 -9 -8 -8 -7 -7 -7 -7 -7 -7 -6 -6 -6 -6 -6 -5 -5 -5 -5 -5 -4 -4 -4 -4 -4 -3 -3 -3 -2 -2 -1 -1 ------- Run | Scr Mat Min Mat Min Exi Min Mat Fac Was Fac Low Low Dat Pro Fac Low Low Zio Pro Fac Upp Upp War Pro Fac Upp Upp Zhi Pro Res Qua Res Tes Acc Com Slots Evolved 18 | . . . 2 . . . 2 2 . . . . . . 2 . . . . 2 . . . . 2 . . . . 2 . 2 . 2 . Power 1 | . . . . . . . . . . . . . . . . . . . . 1 . . . . . . . . . . . . . . . Propulsion 4 | . . . . . . . 1 1 . . . . . . . . . . . 1 . . . . 1 . . . . . . . . . . Utility 13 | . . . 2 . . . 1 1 . . . . . . 2 . . . . . . . . . 1 . . . . 2 . 2 . 2 . Weapon . | . . . . . . . . . . . . . . . . . . . . . . . . . . . . . . . . . . . . Parts Attached 410 | 1 30 2 21 2 . 1 28 43 3 15 4 8 . 3 26 2 . 4 . 47 1 3 13 8 16 6 1 6 7 26 6 5 10 29 33 Power 28 | . 3 . 3 . . . 2 1 1 . . 1 . . 2 . . . . 6 . . 3 . . . . 1 . . . 1 . 1 3 Engine 10 | . 3 . 3 . . . 1 1 . . . 1 . . . . . . . 1 . . . . . . . . . . . . . . . Core 10 | . . . . . . . 1 . . . . . . . 2 . . . . 5 . . 2 . . . . . . . . . . . . Reactor 8 | . . . . . . . . . 1 . . . . . . . . . . . . . 1 . . . . 1 . . . 1 . 1 3 Propulsion 75 | . 13 1 5 . . 1 8 9 1 3 . . . 1 5 . . . . 7 . . 3 2 3 . . 2 . 2 . . 3 4 2 Treads 21 | . 7 1 5 . . 1 7 . . . . . . . . . . . . . . . . . . . . . . . . . . . . Leg 2 | . 2 . . . . . . . . . . . . . . . . . . . . . . . . . . . . . . . . . . Wheel 10 | . 4 . . . . . 1 5 . . . . . . . . . . . . . . . . . . . . . . . . . . . Hover 11 | . . . . . . . . 4 1 3 . . . 1 . . . . . 1 . . 1 . . . . . . . . . . . . Flight 31 | . . . . . . . . . . . . . . . 5 . . . . 6 . . 2 2 3 . . 2 . 2 . . 3 4 2 Utility 172 | 1 4 . 4 1 . . 9 27 . 9 2 4 . 1 17 . . 4 . 17 1 . 4 2 8 2 . 2 4 7 4 2 5 15 16 Device 90 | . . . . . . . . 13 . 8 . 1 . . 13 . . 3 . 9 . . 3 1 5 1 . 1 2 6 2 1 3 8 10 Storage 20 | 1 4 . 2 . . . 2 2 . 1 1 2 . . 1 . . . . 2 . . . . . . . . . . . . 1 1 . Processor 10 | . . . . . . . . 2 . . 1 1 . . 1 . . . . 1 . . 1 1 . . . . . . . 1 . 1 . Hackware 16 | . . . . . . . 1 1 . . . . . 1 . . . 1 . 3 1 . . . 1 1 . . 1 . 1 . 1 . 3 Protection 35 | . . . 2 1 . . 6 9 . . . . . . 2 . . . . 2 . . . . 2 . . 1 1 1 . . . 5 3 Artifact 1 | . . . . . . . . . . . . . . . . . . . . . . . . . . . . . . . 1 . . . . Weapon 135 | . 10 1 9 1 . . 9 6 1 3 2 3 . 1 2 2 . . . 17 . 3 3 4 5 4 1 1 3 17 2 2 2 9 12 Energy Gun 3 | . 2 . . . . . . . . . . . . . . . . . . . . . 1 . . . . . . . . . . . . Energy Cannon 31 | . . . . . . . . . . . 1 . . . . . . . . 5 . 3 . 2 2 1 1 . 1 7 . . . 4 4 Ballistic Gun 21 | . 4 1 6 1 . . 7 1 . . . 1 . . . . . . . . . . . . . . . . . . . . . . . Ballistic Cannon . | . . . . . . . . . . . . . . . . . . . . . . . . . . . . . . . . . . . . Launcher 15 | . 4 . 3 . . . 1 . . . . 1 . . . 1 . . . . . . . . . 2 . . . . . 1 . . 2 Special Weapon . | . . . . . . . . . . . . . . . . . . . . . . . . . . . . . . . . . . . . Impact Weapon . | . . . . . . . . . . . . . . . . . . . . . . . . . . . . . . . . . . . . Slashing Weapon 62 | . . . . . . . 1 5 1 3 1 1 . 1 2 1 . . . 10 . . 2 2 3 1 . 1 2 10 2 1 1 5 6 Piercing Weapon 3 | . . . . . . . . . . . . . . . . . . . . 2 . . . . . . . . . . . . 1 . . Special Melee Weapon . | . . . . . . . . . . . . . . . . . . . . . . . . . . . . . . . . . . . . Unidentified Prototypes 33 | . . . . . . . . . . . . . . . 1 . . 1 . 2 . . 6 . . . . 6 . 3 5 1 7 1 . Parts Lost 38 | . 1 . 2 . . . 2 1 . 1 . 1 . 1 2 . . . . 4 . . . 3 . . . . . . 1 . . . 19 Power 5 | . . . 1 . . . . . . . . 1 . . . . . . . . . . . . . . . . . . . . . . 3 Propulsion 14 | . 1 . . . . . 1 . . 1 . . . 1 1 . . . . 3 . . . 1 . . . . . . . . . . 5 Utility 15 | . . . 1 . . . 1 1 . . . . . . . . . . . 1 . . . 2 . . . . . . . . . . 9 Weapon 4 | . . . . . . . . . . . . . . . 1 . . . . . . . . . . . . . . . 1 . . . 2 Highest Loss Streak 19 | . 1 . 2 . . . 1 1 . 1 . 1 . 1 2 . . . . 2 . . . 3 . . . . . . 1 . . . 19 Average Slot Usage (%) 87 | . 99 100 96 100 100 100 98 77 91 91 92 90 92 99 71 80 80 80 80 77 77 75 83 88 86 78 84 84 85 81 83 81 86 88 87 Engine 3 | . 14 14 10 11 11 11 3 . 5 . . 6 7 7 . . . . . . . . . . . . . . . . . . . . . Core 4 | . . . . . . . 5 6 . . . . . . 5 6 6 6 6 10 11 11 10 11 10 10 10 6 5 4 4 4 4 . . Reactor 1 | . . . . . . . . . 1 7 7 . . . . . . . . . . . . . . . . 3 5 4 4 4 4 7 7 Treads 8 | . 19 27 21 22 22 22 25 . . . . . . . . . . . . . . . . . . . . . . . . . . . . Wheel 2 | . 5 . . . . . . 13 . . . . . . . . . . . . . . . . . . . . . . . . . . . Hover 2 | . . . . . . . . 1 30 30 30 30 30 30 1 . . . . . . . . . . . . . . . . . . . . Flight 8 | . . . . . . . . . . . . . . . 12 13 13 13 13 16 17 17 16 22 24 21 21 24 26 23 23 21 21 20 19 Device 7 | . . . . . . . . 14 15 14 12 5 7 7 8 13 13 13 13 10 11 5 8 16 13 10 10 6 9 8 9 8 12 11 9 Storage 18 | . 28 28 31 33 33 33 27 22 15 15 15 15 15 15 13 13 13 13 13 11 11 11 11 11 10 10 10 10 10 9 9 8 8 8 7 Processor 4 | . . . . . . . . 6 7 7 9 15 15 7 8 13 13 13 13 5 5 5 5 5 5 5 5 5 5 4 4 6 8 8 4 Hackware 9 | . . . . . . . 7 . 7 7 7 7 7 14 13 13 13 13 13 12 12 17 17 11 14 15 21 21 16 19 21 21 21 24 26 Protection 3 | . . . 9 11 11 11 10 . . . . . . . . . . . . . . . . . . . . . . . . . . 4 7 Ballistic Gun 7 | . 14 27 21 22 22 22 17 1 . . . . . . . . . . . . . . . . . . . . . . . . . . . Slashing Weapon 3 | . . . . . . . . 6 6 7 6 7 7 14 6 5 6 6 6 4 5 . 9 5 6 . 1 3 4 5 3 3 4 3 3 Naked Turns . | . . . . . . . . . . . . . . . . . . . . . . . . . . . . . . . . . . . . Heaviest Build 124 | 17 43 43 84 84 84 84 101 104 55 59 53 71 45 48 49 44 44 63 44 96 48 52 52 56 60 53 53 61 61 70 67 71 65 124 121 Greatest Support 84 | 20 40 40 40 40 40 40 62 56 58 58 53 53 53 53 53 46 46 46 46 55 52 52 54 54 68 68 68 68 63 72 72 72 79 84 81 Greatest Overweight (x) 26 | . 3 3 2 2 2 2 3 3 . 1 . 1 . 1 1 . . 1 . 2 . . 16 1 . . . . . 1 . . . 1 26 Average Overweight (x) . | . . 1 1 2 2 2 1 . . . . . . . . . . . . . . . . . . . . . . . . . . . . Largest Inventory Capacity 26 | 8 16 16 24 24 24 24 26 26 16 24 16 24 16 16 24 16 16 16 16 16 16 16 16 16 16 16 16 16 16 16 16 16 16 22 16 Average Capacity 19 | 6 9 16 22 24 24 24 25 25 16 16 16 16 16 16 16 16 16 16 16 16 16 16 16 16 16 16 16 16 16 16 16 16 16 16 15 Most Carried 26 | 6 14 16 24 24 24 24 26 26 16 16 16 17 16 16 16 16 16 16 16 16 15 16 16 16 16 16 16 16 16 16 16 16 16 16 16 Average Carried 18 | 6 8 15 21 23 23 24 24 25 15 15 15 15 16 15 15 15 15 16 16 14 15 15 15 13 15 15 16 15 14 15 15 15 16 14 14 Final Capacity 26 | 8 16 16 24 24 24 24 26 16 16 16 16 16 16 16 16 16 16 16 16 16 16 16 16 16 16 16 16 16 16 16 16 16 16 16 4 Final Carried 26 | 6 14 16 24 24 24 24 26 16 16 15 16 16 16 15 15 16 16 16 16 15 15 16 16 14 14 16 16 16 15 16 16 16 16 14 4 Class Distribution -------------------- 36% | Hauler-Mutant 20% | Hacker-Mutant 13% | Mutant 10% | Hacker-Sprinter 10% | Wizard-Sprinter 3% | Derelict-Ninja Dominant Class ---------------- Mutant | -10/Materials Mutant | -10/Mines Hauler-Mutant | -9/Materials Hauler-Mutant | -9/Mines Hauler-Mutant | -9/Exiles Hauler-Mutant | -8/Mines Hauler-Mutant | -8/Materials Hauler-Mutant | -7/Factory Mutant | -7/Waste Mutant | -7/Factory Mutant | -7/Lower Caves Scout | -7/Lower Caves Scout | -7/Data Miner Hacker-Mutant | -6/Proximity Caves Hacker-Mutant | -6/Factory Derelict-Ninja | -6/Lower Caves Derelict-Ninja | -6/Lower Caves Derelict-Ninja | -6/Zion Derelict-Ninja | -5/Proximity Caves Hacker-Mutant | -5/Factory Hacker-Mutant | -5/Upper Caves Hacker-Mutant | -5/Upper Caves Hacker-Sprinter | -5/Warlord Hacker-Sprinter | -4/Proximity Caves Hacker-Sprinter | -4/Factory Hacker-Sprinter | -4/Upper Caves Hacker-Sprinter | -4/Upper Caves Hacker-Sprinter | -4/Zhirov Hacker-Sprinter | -3/Proximity Caves Hacker-Sprinter | -3/Research Wizard-Sprinter | -3/Quarantine Wizard-Sprinter | -2/Research Wizard-Sprinter | -2/Testing Wizard-Sprinter | -1/Access Wizard-Sprinter | -1/Command Resources | -11 -10 -10 -9 -9 -9 -8 -8 -7 -7 -7 -7 -7 -7 -6 -6 -6 -6 -6 -5 -5 -5 -5 -5 -4 -4 -4 -4 -4 -3 -3 -3 -2 -2 -1 -1 ----------- Run | Scr Mat Min Mat Min Exi Min Mat Fac Was Fac Low Low Dat Pro Fac Low Low Zio Pro Fac Upp Upp War Pro Fac Upp Upp Zhi Pro Res Qua Res Tes Acc Com Matter Collected 6904 | 210 501 163 634 44 24 166 992 501 251 130 60 89 . 30 240 44 . 40 . 546 181 63 1 120 257 103 . . 101 299 . 150 90 300 574 Remotely . | . . . . . . . . . . . . . . . . . . . . . . . . . . . . . . . . . . . . Salvage Created 8503 | 77 649 26 1392 . 49 303 1255 494 786 192 . 51 . . 415 51 . . . 539 87 . . . 206 132 . . 68 432 49 112 60 806 272 Parts 527 | 2 46 . 95 . 2 15 76 46 8 9 . 6 . . 29 7 . . . 33 . . . . 13 11 . . 7 22 3 7 3 56 31 Haulers Intercepted 2 | . 1 . 1 . . . . . . . . . . . . . . . . . . . . . . . . . . . . . . . . Recyclers Shooed 4 | . 3 . 1 . . . . . . . . . . . . . . . . . . . . . . . . . . . . . . . . Parts Field Recycled . | . . . . . . . . . . . . . . . . . . . . . . . . . . . . . . . . . . . . Retrieved Matter . | . . . . . . . . . . . . . . . . . . . . . . . . . . . . . . . . . . . . Parts Self-Destructed 89 | . . . . . . . . . . . 2 3 . 1 . 8 . . . . . 1 62 . . 5 . . 7 . . . . . . Prevented 9 | . . . . . . . . . . . . . . . . 1 . . . . . 2 1 1 . 4 . . . . . . . . . Kills | -11 -10 -10 -9 -9 -9 -8 -8 -7 -7 -7 -7 -7 -7 -6 -6 -6 -6 -6 -5 -5 -5 -5 -5 -4 -4 -4 -4 -4 -3 -3 -3 -2 -2 -1 -1 ------- Run | Scr Mat Min Mat Min Exi Min Mat Fac Was Fac Low Low Dat Pro Fac Low Low Zio Pro Fac Upp Upp War Pro Fac Upp Upp Zhi Pro Res Qua Res Tes Acc Com Combat Hostiles Destroyed 132 | . 16 3 32 . . 6 25 9 . 2 . 4 . . 7 3 . . . 9 . . . . 2 5 . . 1 1 . . . 5 2 Melee 38 | . . . . . . . . 8 . 2 . 1 . . 7 . . . . 9 . . . . 2 . . . 1 1 . . . 5 2 Guns 69 | . 6 3 30 . . 6 23 1 . . . . . . . . . . . . . . . . . . . . . . . . . . . AOE 25 | . 10 . 2 . . . 2 . . . . 3 . . . 3 . . . . . . . . . 5 . . . . . . . . . Classes Destroyed 17 | 1 7 2 3 . . 1 1 1 . . . . . . . . . . . . . . . . . . . . . . . . 1 . . Worker 9 | . . . 3 . . . 1 . . 3 . . . . . . . . . . . . . . . . . . . . . . . . 2 Builder 7 | . 1 . 4 . . . . . . . . . . . . . . . . . . . . . . . . . . . . . . 2 . Tunneler 2 | . 1 . . . . 1 . . . . . . . . . . . . . . . . . . . . . . . . . . . . . Hauler 2 | . 1 . 1 . . . . . . . . . . . . . . . . . . . . . . . . . . . . . . . . Recycler 5 | 1 . . 2 . . . . . . 1 . . . . . . . . . . . . . . . . . . . 1 . . . . . Operator 8 | . 2 . 3 . . . . . . . . . . . 1 . . . . . . . . . . . . . . . . . . . 2 Watcher 43 | . 2 . 2 . . . 5 2 . . . . . . 3 . . . . 4 . . . . 2 . . . . 6 1 3 . 11 2 Swarmer 36 | . 3 . 11 . . . 6 . . . . 4 . . 1 3 . . . 3 . . . . . 5 . . . . . . . . . Grunt 40 | . 13 . 13 . . 4 9 . . 1 . . . . . . . . . . . . . . . . . . . . . . . . . Brawler 2 | . . . . . . 2 . . . . . . . . . . . . . . . . . . . . . . . . . . . . . Duelist 3 | . . . 1 . . . 1 . . . . . . . 1 . . . . . . . . . . . . . . . . . . . . Researcher 1 | . . . . . . . . . . . . . . . . . . . . . . . . . . . . . . . . . 1 . . Sentry 15 | . . . 7 . . . 8 . . . . . . . . . . . . . . . . . . . . . . . . . . . . Demolisher 1 | . . 1 . . . . . . . . . . . . . . . . . . . . . . . . . . . . . . . . . Hunter 2 | . . . . . . . 1 1 . . . . . . . . . . . . . . . . . . . . . . . . . . . Programmer 31 | . . . . . . . . 8 . 1 . . . . 5 . . . . 6 . . . . 2 . . . 1 1 . . . 5 2 Assembled 2 | . . 2 . . . . . . . . . . . . . . . . . . . . . . . . . . . . . . . . . Best Kill Streak 14 | 1 5 2 14 . . 2 3 1 . 2 . 4 . . 2 3 . . . 3 . . . . 1 4 . . 1 2 1 2 1 2 2 Combat Bots Only 9 | . 4 2 9 . . 2 3 1 . 1 . 4 . . 1 3 . . . 3 . . . . 1 4 . . 1 1 . . . 2 2 Max Kills in Single Turn 4 | 1 2 1 3 . . 1 2 1 . 1 . 3 . . 1 3 . . . 1 . . . . 1 4 . . 1 1 1 1 1 1 1 Gunslinging 1 | . . . 1 . . . . . . . . . . . . . . . . . . . . . . . . . . . . . . . . Exploded 4 | . 2 . 2 . . . 2 . . . . 3 . . . 3 . . . . . . . . . 4 . . . . . . . . . Melee 1 | . . . . . . . . 1 . 1 . 1 . . 1 . . . . 1 . . . . 1 . . . 1 1 . . . 1 1 Uniques/NPCs Destroyed . | . . . . . . . . . . . . . . . . . . . . . . . . . . . . . . . . . . . . Combat | -11 -10 -10 -9 -9 -9 -8 -8 -7 -7 -7 -7 -7 -7 -6 -6 -6 -6 -6 -5 -5 -5 -5 -5 -4 -4 -4 -4 -4 -3 -3 -3 -2 -2 -1 -1 -------- Run | Scr Mat Min Mat Min Exi Min Mat Fac Was Fac Low Low Dat Pro Fac Low Low Zio Pro Fac Upp Upp War Pro Fac Upp Upp Zhi Pro Res Qua Res Tes Acc Com Damage Taken 12655 | . 589 97 1083 . . 452 1541 986 . 256 . 275 . 79 565 68 . . . 553 . 56 54 328 130 218 34 . 16 46 214 . 228 132 4655 Core 2741 | . 29 38 140 . . 41 147 161 . 49 . 94 . 28 129 . . . . 40 . . 27 35 1 73 16 . 2 22 . . 27 24 1618 Absorbed by Shields 124 | . . . . . . . . . . 45 . . . . . . . . . . . . 54 . . . . . . . . . . . 25 Core Remaining (%) 80 | 100 . 73 . . . 54 73 . . . . . . 52 . . . . 84 . . . . 89 . . . . 86 . 98 . 98 . . Volleys Fired 486 | 1 65 7 74 3 4 26 106 22 . . 3 1 . . . 1 . . . 21 . 36 . 10 6 38 1 . 2 23 . . . 7 29 Largest 2 | 2 2 2 2 2 2 2 2 2 . . 1 1 . . . 1 . . . 1 . 1 . 1 1 1 1 . 1 1 . . . 1 1 Hottest 120 | 80 80 46 46 46 46 46 50 53 . . 80 39 . . . 39 . . . 90 . 90 . 90 90 90 90 . 90 90 . . . 120 120 Shots Fired 779 | 2 117 14 147 6 8 52 211 44 . . 3 1 . . . 1 . . . 21 . 36 . 10 6 38 1 . 2 23 . . . 7 29 Gun 586 | 2 104 14 146 6 8 52 210 44 . . . . . . . . . . . . . . . . . . . . . . . . . . . Cannon 159 | . . . . . . . . . . . 3 . . . . . . . . 21 . 36 . 10 6 34 1 . 2 23 . . . 7 16 Launcher 34 | . 13 . 1 . . . 1 . . . . 1 . . . 1 . . . . . . . . . 4 . . . . . . . . 13 Special . | . . . . . . . . . . . . . . . . . . . . . . . . . . . . . . . . . . . . Kinetic 540 | . 60 14 146 6 8 52 210 44 . . . . . . . . . . . . . . . . . . . . . . . . . . . Thermal 159 | . . . . . . . . . . . 3 . . . . . . . . 21 . 36 . 10 6 34 1 . 2 23 . . . 7 16 Explosive 30 | . 13 . 1 . . . 1 . . . . 1 . . . 1 . . . . . . . . . . . . . . . . . . 13 Electromagnetic 50 | 2 44 . . . . . . . . . . . . . . . . . . . . . . . . 4 . . . . . . . . . Robot Hit Streak 28 | 2 9 4 17 6 7 18 28 7 . . . 5 . . . 6 . . . . . . . . . 1 . . . . . . . . 3 Robot Miss Streak 5 | . 5 2 5 2 . 1 4 4 . . . . . . . . . . . . . . . . . 1 . . . . . . . . . Penetration Max . | . . . . . . . . . . . . . . . . . . . . . . . . . . . . . . . . . . . . Secondary Targets 5 | . . . 3 . . 1 1 . . . . . . . . . . . . . . . . . . . . . . . . . . . . Max Gunslinging Chain 1 | . . . 1 . . 1 1 . . . . . . . . . . . . . . . . . . . . . . . . . . . . Shots Hit Robots 665 | 2 69 8 110 4 7 46 160 53 16 10 . 4 . . 34 1 . . . 34 2 . . . 21 1 . . 5 17 1 6 4 34 16 Core Hits 294 | 2 34 4 59 1 2 17 63 14 3 4 . 4 . . 12 3 . . . 15 1 . . . 5 7 . . 1 9 1 3 1 17 12 Critical Hits 23 | . . . . . . . . 2 . . . . . . 4 . . . . 1 . . . . . . . . 1 . . 1 1 7 6 Critical Kills 8 | . . . . . . . . . . . . . . . 1 . . . . 1 . . . . . . . . . . . 1 1 2 2 Critical Parts Destroyed 15 | . . . . . . . . 2 . . . . . . 3 . . . . . . . . . . . . . 1 . . . . 5 4 Melee Attacks 555 | . . . . . . . 1 64 16 26 1 6 . 3 88 6 1 . . 68 3 . . 1 45 1 1 . 8 70 7 14 16 76 33 Impact . | . . . . . . . . . . . . . . . . . . . . . . . . . . . . . . . . . . . . Slashing 538 | . . . . . . . 1 64 16 26 1 6 . 3 88 6 1 . . 51 3 . . 1 45 1 1 . 8 70 7 14 16 76 33 Piercing 17 | . . . . . . . . . . . . . . . . . . . . 17 . . . . . . . . . . . . . . . Sneak Attacks 18 | . . . . . . . . 1 . 5 . . . . 2 . . . . . . . . . 1 . . . . 2 . . 2 4 1 Combat Hostiles 1 | . . . . . . . . . . 1 . . . . . . . . . . . . . . . . . . . . . . . . . Follow-up Attacks 10 | . . . . . . . . . . . . . . . . . . . . 3 . . . . 3 . . . 1 3 . . . . . Damage Inflicted 25906 | 27 1787 127 2901 75 132 733 2638 1715 823 1038 . 350 . . 2009 232 . . . 1551 205 . . . 1092 201 . . 248 1046 96 515 865 3796 1704 Guns 6669 | 27 975 127 1782 40 132 684 2536 366 . . . . . . . . . . . . . . . . . . . . . . . . . . . Cannons . | . . . . . . . . . . . . . . . . . . . . . . . . . . . . . . . . . . . . Explosions 3198 | . 809 . 1096 . . . 102 . . . . 242 . . . 232 . . . . . . . . . 201 . . . . . . . . 516 Melee 15925 | . . . . . . . . 1349 823 1038 . 108 . . 2009 . . . . 1551 205 . . . 1088 . . . 248 1046 96 515 865 3796 1188 Ramming 114 | . 3 . 23 35 . 49 . . . . . . . . . . . . . . . . . . 4 . . . . . . . . . . Kinetic 6205 | . 538 127 1782 40 132 684 2536 366 . . . . . . . . . . . . . . . . . . . . . . . . . . . Thermal 217 | . 217 . . . . . . . . . . . . . . . . . . . . . . . . . . . . . . . . . . Explosive 2780 | . 592 . 1096 . . . 102 . . . . 242 . . . 232 . . . . . . . . . . . . . . . . . . 516 Electromagnetic 665 | 27 437 . . . . . . . . . . . . . . . . . . . . . . . . 201 . . . . . . . . . Impact . | . . . . . . . . . . . . . . . . . . . . . . . . . . . . . . . . . . . . Slashing 15461 | . . . . . . . . 1349 823 1038 . 108 . . 2009 . . . . 1087 205 . . . 1088 . . . 248 1046 96 515 865 3796 1188 Piercing 464 | . . . . . . . . . . . . . . . . . . . . 464 . . . . . . . . . . . . . . . Highest Corruption 18 | . 1 1 1 1 1 1 . 5 . . . . . . 2 . . . . 2 . . . 13 . . . . . . 6 2 . . 18 Average Corruption 1 | . 1 1 1 1 1 1 . 3 . . . . . . 1 . . . . 1 . . . 4 . . . . . . 5 1 . . 2 Corruption Purged 26 | . . . . . . . . 7 . . . . . . 3 . . . . 2 . . . 12 . . . . . . . 2 . . . Effects 112 | . 8 4 . 5 1 7 . 44 . . . . . . 11 . . . . 4 . . . 18 . . . . . . 2 1 . . 7 Message Errors 30 | . 2 1 . . . 2 . 14 . . . . . . 2 . . . . 2 . . . 2 . . . . . . 2 . . . 3 Matter Fused 21 | . . . . . . . . 15 . . . . . . . . . . . . . . . 5 . . . . . . . . . . 1 Heat Flow Errors 11 | . . . . . . . . 5 . . . . . . 1 . . . . . . . . 5 . . . . . . . . . . . Energy Discharges 20 | . 2 2 . 3 . 2 . 5 . . . . . . 5 . . . . . . . . . . . . . . . . 1 . . . Data Loss (minor) 21 | . 2 . . 2 . 2 . 4 . . . . . . 3 . . . . 2 . . . 4 . . . . . . . . . . 2 Alerts 1 | . . . . . . . . . . . . . . . . . . . . . . . . 1 . . . . . . . . . . . Misdirections 2 | . . . . . . . . . . . . . . . . . . . . . . . . 1 . . . . . . . . . . 1 Targeting Errors 6 | . 2 1 . . 1 1 . 1 . . . . . . . . . . . . . . . . . . . . . . . . . . . Overload Shots . | . . . . . . . . . . . . . . . . . . . . . . . . . . . . . . . . . . . . Overflow Damage 2561 | . 28 . 205 1 . . 2 101 12 377 . 27 . . 237 . . . . 131 38 . . . 231 . . . . 62 . 92 312 510 195 Projectiles . | . . . . . . . . . . . . . . . . . . . . . . . . . . . . . . . . . . . . Explosions 268 | . 28 . 205 . . . 2 . . . . 10 . . . . . . . . . . . . . . . . . . . . . . 23 Melee 2293 | . . . . 1 . . . 101 12 377 . 17 . . 237 . . . . 131 38 . . . 231 . . . . 62 . 92 312 510 172 Knockbacks 1 | . . . . . . 1 . . . . . . . . . . . . . . . . . . . . . . . . . . . . . Impact 1 | . . . . . . 1 . . . . . . . . . . . . . . . . . . . . . . . . . . . . . Kinetic . | . . . . . . . . . . . . . . . . . . . . . . . . . . . . . . . . . . . . Secondary . | . . . . . . . . . . . . . . . . . . . . . . . . . . . . . . . . . . . . Self-Inflicted Damage 331 | . 99 . 64 . . . . . . . . 36 . . . 40 . . . . . . . . 2 14 . . . . . . . . 76 Shots 10 | . 5 . 1 . . . . . . . . 1 . . . 1 . . . . . . . . . 1 . . . . . . . . 1 Rammed 13 | . 1 . 3 5 . 3 . . . . . . . . . . . . . . . . . . 1 . . . . . . . . . . Targets Rammed 15 | . 1 . 4 5 . 4 . . . . . . . . . . . . . . . . . . 1 . . . . . . . . . . Kicked . | . . . . . . . . . . . . . . . . . . . . . . . . . . . . . . . . . . . . Crushed 2 | . . . 1 . . 1 . . . . . . . . . . . . . . . . . . . . . . . . . . . . . Highest Temperature 402 | 18 108 . 11 . . 24 115 179 . . 120 . . . 189 . . . . 232 . 315 . 312 200 212 48 . 4 12 . . 402 76 152 Average Temperature 65 | 12 32 . 2 . . 9 19 43 . . 57 . . . 100 . . . . 73 . 106 . 104 67 79 23 . 3 6 . . 193 36 51 Received Heat Transfer 1672 | . 135 . 324 . . 234 558 99 . 42 . . . 12 . . . . . . . . 4 . 30 . 9 . . . . . 27 . 198 Effects 1 | . . . . . . . . . . . . . . . . . . . . . . . . . . . . . . . . . 1 . . Short Circuit 1 | . . . . . . . . . . . . . . . . . . . . . . . . . . . . . . . . . 1 . . Siege Activations . | . . . . . . . . . . . . . . . . . . . . . . . . . . . . . . . . . . . . Robots Corrupted . | . . . . . . . . . . . . . . . . . . . . . . . . . . . . . . . . . . . . Combat Hostiles . | . . . . . . . . . . . . . . . . . . . . . . . . . . . . . . . . . . . . Parts Fried . | . . . . . . . . . . . . . . . . . . . . . . . . . . . . . . . . . . . . Impact Corruptions 1 | . . . . 1 . . . . . . . . . . . . . . . . . . . . . . . . . . . . . . . Robots Melted . | . . . . . . . . . . . . . . . . . . . . . . . . . . . . . . . . . . . . Combat Hostiles . | . . . . . . . . . . . . . . . . . . . . . . . . . . . . . . . . . . . . Parts Melted . | . . . . . . . . . . . . . . . . . . . . . . . . . . . . . . . . . . . . Heat Transferred 150 | . 150 . . . . . . . . . . . . . . . . . . . . . . . . . . . . . . . . . . Parts Sabotaged . | . . . . . . . . . . . . . . . . . . . . . . . . . . . . . . . . . . . . Parts Stolen . | . . . . . . . . . . . . . . . . . . . . . . . . . . . . . . . . . . . . Parts Stripped . | . . . . . . . . . . . . . . . . . . . . . . . . . . . . . . . . . . . . Power Chain Reactions 4 | . 3 . . . . . . . . . . . . . . . . . . . . . . . . 1 . . . . . . . . . Missiles Intercepted . | . . . . . . . . . . . . . . . . . . . . . . . . . . . . . . . . . . . . Alert | -11 -10 -10 -9 -9 -9 -8 -8 -7 -7 -7 -7 -7 -7 -6 -6 -6 -6 -6 -5 -5 -5 -5 -5 -4 -4 -4 -4 -4 -3 -3 -3 -2 -2 -1 -1 ------- Run | Scr Mat Min Mat Min Exi Min Mat Fac Was Fac Low Low Dat Pro Fac Low Low Zio Pro Fac Upp Upp War Pro Fac Upp Upp Zhi Pro Res Qua Res Tes Acc Com Peak Influence 823 | 5 231 80 423 215 . 130 468 297 58 143 . . . . 172 . . . . 400 . . . . 174 . . . . 823 601 374 198 604 516 Initial 349 | . 3 70 21 8 . . 12 212 58 40 . . . . . . . . . . . . . . . . . . . 20 349 275 15 53 40 Average 130 | 5 116 22 141 58 . 37 174 80 58 37 . . . . 64 . . . . 138 . . . . 70 . . . . 310 452 198 96 190 281 Maximum Alert Level 3 | . 1 . 2 1 . . 2 1 . . . . . . . . . . . 2 . . . . . . . . . 3 2 1 . 2 2 Low Security (%) 77 | 100 91 100 72 94 . 100 52 93 100 100 . . . . 100 . . . . 69 . . . . 100 . . . . 59 . 62 100 68 37 Level 1 17 | . 8 . 24 5 . . 44 6 . . . . . . . . . . . 30 . . . . . . . . . . 18 37 . 14 25 Level 2 4 | . . . 2 . . . 2 . . . . . . . . . . . . . . . . . . . . . . 30 81 . . 17 36 Level 3 . | . . . . . . . . . . . . . . . . . . . . . . . . . . . . . . 9 . . . . . Level 4 . | . . . . . . . . . . . . . . . . . . . . . . . . . . . . . . . . . . . . Level 5 . | . . . . . . . . . . . . . . . . . . . . . . . . . . . . . . . . . . . . High Security . | . . . . . . . . . . . . . . . . . . . . . . . . . . . . . . . . . . . . Max Security . | . . . . . . . . . . . . . . . . . . . . . . . . . . . . . . . . . . . . Squads Dispatched 63 | . 6 . 4 1 . 1 3 9 . 3 . . . . 5 . . . . 6 . . . . 2 . . . . 2 1 2 4 5 9 Investigation 6 | . 3 . . 1 . . 2 . . . . . . . . . . . . . . . . . . . . . . . . . . . . Extermination 25 | . . . . . . . . 7 . 1 . . . . 3 . . . . 4 . . . . 2 . . . . 1 . . . 2 5 Reinforcement 27 | . 3 . 4 . . 1 1 2 . 2 . . . . 2 . . . . 2 . . . . . . . . . 1 . 2 4 1 2 Assault 5 | . . . . . . . . . . . . . . . . . . . . . . . . . . . . . . . 1 . . 2 2 Garrison . | . . . . . . . . . . . . . . . . . . . . . . . . . . . . . . . . . . . . Intercept . | . . . . . . . . . . . . . . . . . . . . . . . . . . . . . . . . . . . . Construction Impeded 2 | . . . . . . 1 . . . . . . . . 1 . . . . . . . . . . . . . . . . . . . . Haulers Reinforced . | . . . . . . . . . . . . . . . . . . . . . . . . . . . . . . . . . . . . Stealth | -11 -10 -10 -9 -9 -9 -8 -8 -7 -7 -7 -7 -7 -7 -6 -6 -6 -6 -6 -5 -5 -5 -5 -5 -4 -4 -4 -4 -4 -3 -3 -3 -2 -2 -1 -1 --------- Run | Scr Mat Min Mat Min Exi Min Mat Fac Was Fac Low Low Dat Pro Fac Low Low Zio Pro Fac Upp Upp War Pro Fac Upp Upp Zhi Pro Res Qua Res Tes Acc Com Distress Signals 35 | . 1 1 6 . . 1 5 . . 2 . . . . . . . . . 1 . . 4 . 2 . . . . 1 . 3 . 3 5 Communications Jammed 4 | . . . . . . . . 4 . . . . . . . . . . . . . . . . . . . . . . . . . . . Distress Signals 4 | . . . . . . . . 4 . . . . . . . . . . . . . . . . . . . . . . . . . . . Times Spotted 479 | . 30 4 56 10 . 16 58 35 . 9 . 4 . 3 24 3 . . . 27 . 4 13 1 16 7 8 . 1 27 17 6 19 28 53 Peak Tracking Total 13 | . 3 2 8 3 . 3 3 3 . 6 . 4 . 3 3 3 . . . 6 . 2 10 1 8 4 4 . 1 9 11 2 13 5 13 Tactical Retreats 84 | . 1 1 . 1 . 5 19 8 . 2 . . . 1 3 . . . . 5 . 2 . 1 6 3 2 . . 7 3 . 1 3 10 Traps | -11 -10 -10 -9 -9 -9 -8 -8 -7 -7 -7 -7 -7 -7 -6 -6 -6 -6 -6 -5 -5 -5 -5 -5 -4 -4 -4 -4 -4 -3 -3 -3 -2 -2 -1 -1 ------- Run | Scr Mat Min Mat Min Exi Min Mat Fac Was Fac Low Low Dat Pro Fac Low Low Zio Pro Fac Upp Upp War Pro Fac Upp Upp Zhi Pro Res Qua Res Tes Acc Com Traps Triggered 22 | . 1 . 1 . . . 2 5 . 4 . . . . 2 . . . . . . . . . 1 . . . . . 1 1 . 2 2 Indirectly . | . . . . . . . . . . . . . . . . . . . . . . . . . . . . . . . . . . . . Trap Hack Attempts . | . . . . . . . . . . . . . . . . . . . . . . . . . . . . . . . . . . . . Triggered . | . . . . . . . . . . . . . . . . . . . . . . . . . . . . . . . . . . . . Disarmed . | . . . . . . . . . . . . . . . . . . . . . . . . . . . . . . . . . . . . Reprogrammed . | . . . . . . . . . . . . . . . . . . . . . . . . . . . . . . . . . . . . Reused . | . . . . . . . . . . . . . . . . . . . . . . . . . . . . . . . . . . . . Traps Extracted . | . . . . . . . . . . . . . . . . . . . . . . . . . . . . . . . . . . . . Installed . | . . . . . . . . . . . . . . . . . . . . . . . . . . . . . . . . . . . . Triggered 12 | . . . . . . . . . . . 1 . . . . 1 . . . . . 1 7 2 . . . . . . . . . . . Machines | -11 -10 -10 -9 -9 -9 -8 -8 -7 -7 -7 -7 -7 -7 -6 -6 -6 -6 -6 -5 -5 -5 -5 -5 -4 -4 -4 -4 -4 -3 -3 -3 -2 -2 -1 -1 ---------- Run | Scr Mat Min Mat Min Exi Min Mat Fac Was Fac Low Low Dat Pro Fac Low Low Zio Pro Fac Upp Upp War Pro Fac Upp Upp Zhi Pro Res Qua Res Tes Acc Com Machines Disabled 20 | . 2 . 5 . . . 3 . . . . . . . . . . . . . . . . . . . . . . 1 3 . 5 . 1 Max in Single Turn 2 | . 1 . 2 . . . 2 . . . . . . . . . . . . . . . . . . . . . . 1 1 . 1 . 1 Garrison Access 20 | . . . . . . . 1 1 . 2 . . . . 3 . . . . 3 . . . . 1 . . . . 3 1 . . 5 . Machines Sabotaged . | . . . . . . . . . . . . . . . . . . . . . . . . . . . . . . . . . . . . Garrisons Compromised . | . . . . . . . . . . . . . . . . . . . . . . . . . . . . . . . . . . . . Overloaded Fab Kills . | . . . . . . . . . . . . . . . . . . . . . . . . . . . . . . . . . . . . Fab Network Shutdowns 3 | . . . . . . . . . . . . . . . . . . . . 1 . . . . . . . . . 1 . . . 1 . Hacking | -11 -10 -10 -9 -9 -9 -8 -8 -7 -7 -7 -7 -7 -7 -6 -6 -6 -6 -6 -5 -5 -5 -5 -5 -4 -4 -4 -4 -4 -3 -3 -3 -2 -2 -1 -1 --------- Run | Scr Mat Min Mat Min Exi Min Mat Fac Was Fac Low Low Dat Pro Fac Low Low Zio Pro Fac Upp Upp War Pro Fac Upp Upp Zhi Pro Res Qua Res Tes Acc Com Machines Accessed 240 | . 8 . 8 1 2 1 15 18 . 11 . 1 4 . 29 1 1 . . 26 1 1 11 . 16 1 1 9 . 21 17 . 5 19 12 Terminals 136 | . 5 . 6 . . 1 11 12 . 5 . . . . 15 . . . . 16 . . . . 10 . 1 . . 13 14 . 5 10 12 Fabricators 15 | . . . . . . . . . . 2 . . . . 4 . . . . 2 . . . . 1 . . . . 2 . . . 4 . Repair Stations 12 | . 1 . 1 . . . 1 2 . 1 . . . . 2 . . . . 2 . . . . 1 . . . . 1 . . . . . Recycling Units 14 | . 2 . . . . . 1 3 . . . . . . 4 . . . . 2 . . . . 1 . . . . 1 . . . . . Scanalyzers 10 | . . . 1 . . . 1 . . 1 . . . . 1 . . . . 1 . . . . 2 . . . . 1 2 . . . . Garrison Access 20 | . . . . . . . 1 1 . 2 . . . . 3 . . . . 3 . . . . 1 . . . . 3 1 . . 5 . Total Hacks 802 | . 23 . 33 1 2 3 52 56 . 39 . 5 26 . 83 1 1 . . 88 1 1 19 . 62 1 1 48 . 65 46 . 20 75 50 Successful 555 | . 15 . 19 1 2 2 31 30 . 27 . 5 26 . 54 1 1 . . 50 1 1 19 . 49 1 1 48 . 42 31 . 16 54 28 Failed 246 | . 8 . 14 . . 1 20 26 . 12 . . . . 29 . . . . 38 . . . . 13 . . . . 23 15 . 4 21 22 Catastrophic 27 | . 1 . 4 . . . 4 1 . 3 . . . . 3 . . . . 3 . . . . 2 . . . . 2 1 . 1 1 1 Database Lockouts 1 | . . . . . . . 1 . . . . . . . . . . . . . . . . . . . . . . . . . . . . Manual 306 | . 16 . 12 . 1 3 29 28 . 16 . . . . 33 . . . . 38 . . 1 . 18 . . . . 25 17 . 7 26 36 Terminals 498 | . 16 . 24 . . 3 41 44 . 20 . . . . 53 . . . . 66 . . . . 29 . 1 . . 42 39 . 20 50 50 Fabricators 42 | . . . . . . . . . . 2 . . . . 11 . . . . 6 . . . . 1 . . . . 6 . . . 16 . Repair Stations 37 | . 3 . 6 . . . 4 5 . 2 . . . . 6 . . . . 5 . . . . 4 . . . . 2 . . . . . Recycling Units 26 | . 4 . . . . . 2 6 . . . . . . 6 . . . . 3 . . . . 2 . . . . 3 . . . . . Scanalyzers 60 | . . . 3 . . . 4 . . 11 . . . . 4 . . . . 1 . . . . 25 . . . . 7 5 . . . . Garrison Access 33 | . . . . . . . 1 1 . 4 . . . . 3 . . . . 7 . . . . 1 . . . . 5 2 . . 9 . Terminal Hacks 292 | . 5 . 9 1 2 1 11 12 . 5 . 5 26 . 18 1 1 . . 25 1 1 19 . 10 1 1 48 . 15 20 . 12 28 14 Record 76 | . . . . . 1 . . . . . . 5 11 . 1 . . . . . . . 17 . . . 1 36 . . 4 . . . . Part Schematic 21 | . . . 1 . . 1 . . . . . . 6 . 2 . . . . 3 . . . . 1 . . 4 . 1 . . 1 1 . Robot Schematic 7 | . . . . . . . . . . 1 . . 6 . . . . . . . . . . . . . . . . . . . . . . Robot Analysis 11 | . 3 . 1 . . . 1 1 . . . . . . . . . . . . . . . . . . . 4 . . . . . 1 . Prototype ID Bank 15 | . 1 . . . . . 2 . . . . . 3 . 2 . . . . 2 . . . . . . . 4 . . . . . 1 . Open Door 12 | . . . . 1 . . . . . . . . . . . 1 1 . . . 1 1 2 . . 1 . . . . 2 . 1 . 1 Level Access Points 1 | . . . . . . . . . . . . . . . . . . . . . . . . . . . . . . . . . 1 . . Branch Access Points 7 | . . . . . . . 1 . . 1 . . . . 1 . . . . 1 . . . . . . . . . 1 1 . . 1 . Emergency Access Points 5 | . . . . . . . . . . . . . . . . . . . . 1 . . . . . . . . . 1 . . 1 2 . Machine Index 3 | . . . . . . . . . . . . . . . . . . . . . . . . . 1 . . . . . . . . 1 1 Terminal Index 7 | . . . . . . . . . . . . . . . 1 . . . . 1 . . . . 1 . . . . 1 1 . 1 . 1 Fabricator Index 3 | . . . . . . . . . . . . . . . . . . . . 1 . . . . . . . . . . . . 1 1 . Repair Station Index 1 | . . . . . . . . . . . . . . . . . . . . . . . . . . . . . . . . . . . 1 Garrison Index 6 | . . . . . . . . . . 1 . . . . 1 . . . . 1 . . . . . . . . . 1 1 . . . 1 Alert Level 20 | . . . 2 . . . 3 3 . . . . . . . . . . . 2 . . . . . . . . . 2 2 . 1 4 1 Unreport Threat 18 | . . . 4 . . . 2 2 . . . . . . . . . . . 2 . . . . . . . . . 1 1 . 1 5 . Locate Traps 30 | . 1 . 1 . . . 2 3 . . . . . . 7 . . . . 4 . . . . 2 . . . . . 3 . 1 4 2 Recall Extermination 4 | . . . . . . . . . . . . . . . . . . . . 1 . . . . 1 . . . . 1 . . . . 1 Recall Assault 4 | . . . . . . . . . . . . . . . . . . . . . . . . . . . . . . . 2 . . 2 . Hauler Manifests 2 | . . . . . . . . . . 1 . . . . 1 . . . . . . . . . . . . . . . . . . . . Registered Prototypes 2 | . . . . . . . . . . . . . . . . . . . . . . . . . . . . . . . . . 1 1 . Zone Layout 34 | . . . . . . . . 3 . 1 . . . . 2 . . . . 6 . . . . 4 . . . . 6 3 . 2 4 3 EX-Prototype ID Bank 1 | . . . . . 1 . . . . . . . . . . . . . . . . . . . . . . . . . . . . . . Disengage Seal 2 | . . . . . . . . . . . . . . . . . . . . . . . . . . . . . . . . . . . 2 Fabricator Hacks 23 | . . . . . . . . . . 1 . . . . 7 . . . . 4 . . . . . . . . . 3 . . . 8 . Network Status 7 | . . . . . . . . . . 1 . . . . 3 . . . . 1 . . . . . . . . . . . . . 2 . Load Schematic 8 | . . . . . . . . . . . . . . . 2 . . . . 2 . . . . . . . . . 1 . . . 3 . Build 8 | . . . . . . . . . . . . . . . 2 . . . . 1 . . . . . . . . . 2 . . . 3 . Repair Station Hacks 31 | . 2 . 6 . . . 4 4 . 2 . . . . 5 . . . . 2 . . . . 4 . . . . 2 . . . . . Scan Component 16 | . 1 . 3 . . . 2 2 . 1 . . . . 3 . . . . 1 . . . . 2 . . . . 1 . . . . . Repair 15 | . 1 . 3 . . . 2 2 . 1 . . . . 2 . . . . 1 . . . . 2 . . . . 1 . . . . . Recycling Unit Hacks 11 | . 2 . . . . . 2 1 . . . . . . 3 . . . . 2 . . . . 1 . . . . . . . . . . Report Inventory 10 | . 2 . . . . . 1 1 . . . . . . 3 . . . . 2 . . . . 1 . . . . . . . . . . Retrieve Components 1 | . . . . . . . 1 . . . . . . . . . . . . . . . . . . . . . . . . . . . . Scanalyzer 51 | . . . 2 . . . 4 . . 10 . . . . 4 . . . . . . . . . 23 . . . . 6 2 . . . . Insert Component 18 | . . . 1 . . . 2 . . 4 . . . . 2 . . . . . . . . . 5 . . . . 2 2 . . . . Analyze 33 | . . . 1 . . . 2 . . 6 . . . . 2 . . . . . . . . . 18 . . . . 4 . . . . . Garrison Access Hacks 20 | . . . . . . . 1 1 . 2 . . . . 3 . . . . 3 . . . . 1 . . . . 3 1 . . 5 . Seal Access 20 | . . . . . . . 1 1 . 2 . . . . 3 . . . . 3 . . . . 1 . . . . 3 1 . . 5 . Unauthorized Hacks 127 | . 6 . 2 . . 1 9 12 . 7 . . . . 14 . . . . 14 . . . . 10 . . . . 13 8 . 4 13 14 Terminals 108 | . 4 . 2 . . 1 9 11 . 7 . . . . 9 . . . . 12 . . . . 8 . . . . 11 8 . 4 8 14 Track 45 | . 1 . . . . 1 6 5 . 3 . . . . 3 . . . . 5 . . . . 3 . . . . 3 3 . . 3 9 Assimilate 18 | . 1 . . . . . . 2 . 2 . . . . 2 . . . . 2 . . . . 2 . . . . 2 . . 1 3 1 Botnet 44 | . 1 . 2 . . . 3 4 . 2 . . . . 4 . . . . 5 . . . . 3 . . . . 6 5 . 3 2 4 Operators 1 | . 1 . . . . . . . . . . . . . . . . . . . . . . . . . . . . . . . . . . Fabricators 11 | . . . . . . . . . . . . . . . 3 . . . . 1 . . . . 1 . . . . 1 . . . 5 . Prioritize 3 | . . . . . . . . . . . . . . . 1 . . . . . . . . . . . . . . . . . . 2 . Siphon 8 | . . . . . . . . . . . . . . . 2 . . . . 1 . . . . 1 . . . . 1 . . . 3 . Repair Stations . | . . . . . . . . . . . . . . . . . . . . . . . . . . . . . . . . . . . . Recycling Units 8 | . 2 . . . . . . 1 . . . . . . 2 . . . . 1 . . . . 1 . . . . 1 . . . . . Recyclers 6 | . . . . . . . . 1 . . . . . . 2 . . . . 1 . . . . 1 . . . . 1 . . . . . Tunnel 2 | . 2 . . . . . . . . . . . . . . . . . . . . . . . . . . . . . . . . . . Scanalyzers . | . . . . . . . . . . . . . . . . . . . . . . . . . . . . . . . . . . . . Garrison Access . | . . . . . . . . . . . . . . . . . . . . . . . . . . . . . . . . . . . . Data Cores Recovered 4 | . . . 2 . . . . . . . . . . . 1 . . . . . . . . . . . . . . . . . . . 1 Used 2 | . . . . . . . . . . . . . . . 1 . . . . . . . . . . . . . . . . . . . 1 Hacking Detections 157 | . 8 . 7 . . 1 13 16 . 7 . . . . 21 . . . . 22 . . . . 11 . . . . 18 10 . 2 13 8 Full Trace Events 2 | . 1 . . . . . 1 . . . . . . . . . . . . . . . . . . . . . . . . . . . . Feedback Events . | . . . . . . . . . . . . . . . . . . . . . . . . . . . . . . . . . . . . Feedback Blocked . | . . . . . . . . . . . . . . . . . . . . . . . . . . . . . . . . . . . . Robot Schematics Acquired 7 | . . . . . . . . . . 1 . . 6 . . . . . . . . . . . . . . . . . . . . . . Robots Built . | . . . . . . . . . . . . . . . . . . . . . . . . . . . . . . . . . . . . Matter . | . . . . . . . . . . . . . . . . . . . . . . . . . . . . . . . . . . . . Time . | . . . . . . . . . . . . . . . . . . . . . . . . . . . . . . . . . . . . Total Robot Build Rating . | . . . . . . . . . . . . . . . . . . . . . . . . . . . . . . . . . . . . Part Schematics Acquired 35 | . . . 2 . . 1 1 . . 4 . . 6 . 4 . . . . 3 . . . . 5 . . 4 . 3 . . 1 1 . Parts Built 10 | . . . . . . . . . . . . . . . 4 . . . . 1 . . . . . . . . . 2 . . . 3 . Matter 2030 | . . . . . . . . . . . . . . . 350 . . . . 213 . . . . . . . . . 729 . . . 738 . Time 675 | . . . . . . . . . . . . . . . 175 . . . . 152 . . . . . . . . . 148 . . . 200 . Total Part Build Rating 70 | . . . . . . . . . . . . . . . 28 . . . . 5 . . . . . . . . . 18 . . . 19 . Parts Repaired 15 | . 1 . 3 . . . 2 2 . 1 . . . . 2 . . . . 1 . . . . 2 . . . . 1 . . . . . Time 744 | . 26 . 78 . . . 124 66 . 80 . . . . 120 . . . . 26 . . . . 198 . . . . 26 . . . . . Parts Recycled . | . . . . . . . . . . . . . . . . . . . . . . . . . . . . . . . . . . . . Recycled Matter . | . . . . . . . . . . . . . . . . . . . . . . . . . . . . . . . . . . . . Retrieved Matter . | . . . . . . . . . . . . . . . . . . . . . . . . . . . . . . . . . . . . Retrieved Components 9 | . . . . . . . 9 . . . . . . . . . . . . . . . . . . . . . . . . . . . . Parts Scanalyzed 15 | . . . 1 . . . 1 . . 4 . . . . 2 . . . . . . . . . 4 . . . . 2 1 . . . . Part Schematics Acquired 14 | . . . 1 . . . 1 . . 4 . . . . 2 . . . . . . . . . 4 . . . . 2 . . . . . Parts Damaged 4 | . . . . . . . . . . . . . . . 1 . . . . . . . . . 3 . . . . . . . . . . Bothacking | -11 -10 -10 -9 -9 -9 -8 -8 -7 -7 -7 -7 -7 -7 -6 -6 -6 -6 -6 -5 -5 -5 -5 -5 -4 -4 -4 -4 -4 -3 -3 -3 -2 -2 -1 -1 ------------ Run | Scr Mat Min Mat Min Exi Min Mat Fac Was Fac Low Low Dat Pro Fac Low Low Zio Pro Fac Upp Upp War Pro Fac Upp Upp Zhi Pro Res Qua Res Tes Acc Com Used RIF Installer . | . . . . . . . . . . . . . . . . . . . . . . . . . . . . . . . . . . . . Robots Hacked . | . . . . . . . . . . . . . . . . . . . . . . . . . . . . . . . . . . . . Non-combat . | . . . . . . . . . . . . . . . . . . . . . . . . . . . . . . . . . . . . Combat . | . . . . . . . . . . . . . . . . . . . . . . . . . . . . . . . . . . . . Robot Hacks Applied . | . . . . . . . . . . . . . . . . . . . . . . . . . . . . . . . . . . . . Relay Couplers Released 4 | . . . . . . . . 4 . . . . . . . . . . . . . . . . . . . . . . . . . . . Programmers 4 | . . . . . . . . 4 . . . . . . . . . . . . . . . . . . . . . . . . . . . Robots Rewired 8 | . . . . . 2 . . . . . . . . . . . . . . . . . 4 . . . . . . . . . 2 . . Allies Hacked 1 | . . . . . . . . . . . . . . . 1 . . . . . . . . . . . . . . . . . . . . Hacks Repelled . | . . . . . . . . . . . . . . . . . . . . . . . . . . . . . . . . . . . . Allies | -11 -10 -10 -9 -9 -9 -8 -8 -7 -7 -7 -7 -7 -7 -6 -6 -6 -6 -6 -5 -5 -5 -5 -5 -4 -4 -4 -4 -4 -3 -3 -3 -2 -2 -1 -1 -------- Run | Scr Mat Min Mat Min Exi Min Mat Fac Was Fac Low Low Dat Pro Fac Low Low Zio Pro Fac Upp Upp War Pro Fac Upp Upp Zhi Pro Res Qua Res Tes Acc Com Total Allies 23 | . 1 2 . 3 2 . . 1 . 2 . . . 1 1 . . . . 1 . . 4 . 1 . . . . . . . 2 2 . Largest Group 4 | . 1 2 2 3 4 4 . 1 . 2 . . . 1 1 . . . . 1 . . 4 1 1 . . . . . . . 1 1 . Highest-Rated Group 188 | . 10 42 42 40 40 40 . 10 . 36 . . . 94 10 . . . . 26 . . 188 41 44 . . . . . . . 160 44 . Highest-Rated Ally 160 | . 10 31 31 16 16 16 . 10 . 26 . . . 94 10 . . . . 26 . . 60 41 44 . . . . . . . 160 44 . Total Orders 3 | . . . . . . . . . . . . . . . 1 . . . . . . . . . 1 . . . . . . . . 1 . STAY 3 | . . . . . . . . . . . . . . . 1 . . . . . . . . . 1 . . . . . . . . 1 . Ally Attacks 77 | . . 3 4 27 . 14 . . . . . . . 15 . . . . . . . . . 3 . . . . . . . . 11 . . Total Damage 2033 | . . 63 42 275 . 117 . . . . . . . 623 . . . . . . . . . 160 . . . . . . . . 753 . . Kills 25 | . . 2 1 10 . 3 . . . . . . . 3 . . . . . . . . . . . . . . . . . . 6 . . Allies Corrupted 1 | . . . . . . . . . . . . . . . . . . . . . . . . . . . . . . . . . . 1 . Allies Melted . | . . . . . . . . . . . . . . . . . . . . . . . . . . . . . . . . . . . . Intel | -11 -10 -10 -9 -9 -9 -8 -8 -7 -7 -7 -7 -7 -7 -6 -6 -6 -6 -6 -5 -5 -5 -5 -5 -4 -4 -4 -4 -4 -3 -3 -3 -2 -2 -1 -1 ------- Run | Scr Mat Min Mat Min Exi Min Mat Fac Was Fac Low Low Dat Pro Fac Low Low Zio Pro Fac Upp Upp War Pro Fac Upp Upp Zhi Pro Res Qua Res Tes Acc Com Robot Analysis Total 11 | . 3 . 1 . . . 1 1 . . . . . . . . . . . . . . . . . . . 4 . . . . . 1 . Derelict Logs Recovered 15 | . . . . 1 . . . . . . 3 3 . 2 . . . . . . 3 1 . 1 . 1 . . . . . . . . . Drone Launches . | . . . . . . . . . . . . . . . . . . . . . . . . . . . . . . . . . . . . Drone Recoveries . | . . . . . . . . . . . . . . . . . . . . . . . . . . . . . . . . . . . . Exploration | -11 -10 -10 -9 -9 -9 -8 -8 -7 -7 -7 -7 -7 -7 -6 -6 -6 -6 -6 -5 -5 -5 -5 -5 -4 -4 -4 -4 -4 -3 -3 -3 -2 -2 -1 -1 ------------- Run | Scr Mat Min Mat Min Exi Min Mat Fac Was Fac Low Low Dat Pro Fac Low Low Zio Pro Fac Upp Upp War Pro Fac Upp Upp Zhi Pro Res Qua Res Tes Acc Com Turns Passed 47012 | 19 2136 1443 2133 1465 1094 1470 6593 5751 244 1592 381 436 36 823 2961 381 224 491 292 4253 397 842 628 1243 992 1220 163 78 243 1396 308 1070 413 2185 1616 Spaces Moved 48614 | 13 974 653 806 677 528 641 1293 3663 424 1955 852 889 84 1047 3853 920 595 1180 705 5140 1134 1138 1002 959 1840 998 419 239 664 3057 832 1574 957 4008 2901 Core 22 | . . . . . . . . . . . . . . . . . . . . . . . 1 . . . . . . . . . . . 21 Treads 4482 | . 260 639 806 677 528 641 931 . . . . . . . . . . . . . . . . . . . . . . . . . . . . Legs 136 | 13 123 . . . . . . . . . . . . . . . . . . . . . . . . . . . . . . . . . . Wheels 4139 | . 591 14 . . . . 362 3172 . . . . . . . . . . . . . . . . . . . . . . . . . . . Hover 6007 | . . . . . . . . 491 424 1955 852 889 84 1047 265 . . . . . . . . . . . . . . . . . . . . Flight 33828 | . . . . . . . . . . . . . . . 3588 920 595 1180 705 5140 1134 1138 1001 959 1840 998 419 239 664 3057 832 1574 957 4008 2880 Fastest Speed 20 | 120 90 120 180 200 200 200 130 45 43 43 43 43 43 43 37 37 37 37 37 34 34 34 32 28 26 28 28 24 24 24 24 24 20 20 20 Average Speed 53 | 120 120 178 186 200 200 200 165 101 47 43 43 43 43 43 37 37 37 37 37 36 34 34 34 28 26 28 28 25 24 24 24 24 22 21 24 Slowest Speed 1350 | 120 160 180 200 200 200 200 200 130 48 105 43 103 43 105 120 37 37 117 37 197 34 34 850 103 28 28 28 28 24 96 24 24 26 89 1350 Overloaded Moves . | . . . . . . . . . . . . . . . . . . . . . . . . . . . . . . . . . . . . Propulsion Burnouts . | . . . . . . . . . . . . . . . . . . . . . . . . . . . . . . . . . . . . Robots Hopped 192 | . . . . . . . . . . . . . . . 28 . . . . 32 . 1 2 . 40 . 3 . . 14 10 22 12 14 14 Cave-ins Triggered 2 | . 1 . . . . . . . . . . . . . . . . . . . . . . 1 . . . . . . . . . . . Teleports 1 | . . . . . . . . . . . . . . . . . . . . . . . . . . . . 1 . . . . . . . Exploration Rate (%) 74 | 3 99 99 78 99 92 96 93 77 96 49 89 86 75 83 76 78 78 87 74 69 94 79 95 78 31 72 63 62 80 63 86 32 55 65 52 Regions Visited 35 Branch Regions 23 Pre-discovered Areas 15 | . 2 . . . 1 . . . . . 1 2 1 1 . . . 4 . . . . . . . . . 3 . . . . . . . Known Exits Taken 25 | . . . . . . . . . . 1 1 1 1 1 1 1 1 1 1 1 1 1 1 1 1 1 1 1 1 1 1 1 1 1 . Unknown Exits Taken 8 | 1 1 1 1 1 1 1 1 . . . . . . . . . . . . . . . . . . . . . . . . . . . . Scrap Searched 48 | . . . . 1 . 3 . . . . 2 9 . 4 . 1 3 3 2 . 2 3 . 4 . 5 3 . 3 . . . . . . Spaces Dug 416 | . 11 . . . . . 1 28 . 16 1 1 . 3 39 6 1 . . 37 1 36 . 11 16 35 2 . 2 49 3 7 5 36 69 Terrain Destroyed 541 | . 62 . 21 . . . 9 28 . 16 1 24 . 3 39 24 1 . . 37 1 36 . 11 16 38 2 . 2 49 3 7 5 36 70 Melee 218 | . . . . . . . 1 28 . 16 1 1 . 3 39 6 1 . . 16 1 . . 1 10 1 1 . . 35 3 7 5 29 13 Projectile 146 | . . . . . . . . . . . . . . . . . . . . 21 . 36 . 10 6 34 1 . 2 14 . . . 7 15 AOE 177 | . 62 . 21 . . . 8 . . . . 23 . . . 18 . . . . . . . . . 3 . . . . . . . . 42 Terrain Rammed . | . . . . . . . . . . . . . . . . . . . . . . . . . . . . . . . . . . . . Walls Destroyed . | . . . . . . . . . . . . . . . . . . . . . . . . . . . . . . . . . . . . Machines Disabled . | . . . . . . . . . . . . . . . . . . . . . . . . . . . . . . . . . . . . Actions | -11 -10 -10 -9 -9 -9 -8 -8 -7 -7 -7 -7 -7 -7 -6 -6 -6 -6 -6 -5 -5 -5 -5 -5 -4 -4 -4 -4 -4 -3 -3 -3 -2 -2 -1 -1 --------- Run | Scr Mat Min Mat Min Exi Min Mat Fac Was Fac Low Low Dat Pro Fac Low Low Zio Pro Fac Upp Upp War Pro Fac Upp Upp Zhi Pro Res Qua Res Tes Acc Com Total 67873 | 14 1815 915 1296 781 561 774 5568 5543 454 2655 861 926 83 1412 5158 948 597 1229 735 7377 1139 1556 1288 1913 2241 1896 457 255 735 3580 917 2218 1105 5155 3716 Wait 17396 | . 722 250 342 84 14 102 4096 1676 . 635 . 17 . 357 1178 19 . 41 31 2101 2 377 229 934 360 851 39 . 48 402 53 637 118 981 700 Move 48225 | 12 973 652 805 676 527 640 1292 3663 423 1954 851 888 83 1046 3800 919 594 1179 704 5076 1133 1135 997 957 1768 997 412 238 663 3029 811 1538 936 3979 2875 Hop 163 | . . . . . . . . . . . . . . . 24 . . . . 31 . 1 2 . 32 . 3 . . 13 10 13 8 14 12 Pick Up 168 | . 12 3 25 5 4 . 17 32 4 7 . 2 . 1 15 1 1 1 . 6 . 1 4 1 5 1 . 3 2 5 2 3 . 3 2 Fast Attach 121 | 1 1 . 7 . . . 1 9 1 7 1 1 . 2 7 . . 3 . 15 1 . 13 . 4 1 . 5 1 6 6 4 8 7 9 Attach 100 | . 1 . 1 . . . 4 10 1 2 . 2 . 1 6 . . . . 12 . 2 . 4 8 1 . . 4 5 2 1 . 17 16 Detach 97 | . . . . . . . . 2 1 . 1 1 . 1 8 . . . . 15 . 2 2 1 8 2 . . 4 7 3 2 . 19 18 Swap 194 | . 28 2 13 2 . 1 23 24 1 6 3 5 . . 13 2 . 1 . 20 . 1 1 4 4 4 1 3 2 15 . . 2 5 8 Drop 261 | . 12 1 25 6 4 1 28 41 7 11 1 3 . 1 19 . 1 4 . 16 . 1 14 . 5 . . 6 2 10 5 6 6 11 14 Fire 486 | 1 65 7 74 3 4 26 106 22 . . 3 1 . . . 1 . . . 21 . 36 . 10 6 38 1 . 2 23 . . . 7 29 Melee 541 | . . . . . . . 1 64 16 26 1 6 . 3 88 6 1 . . 64 3 . . 1 41 1 1 . 7 65 7 14 16 76 33 Ram 1 | . 1 . . . . . . . . . . . . . . . . . . . . . . . . . . . . . . . . . . Kick . | . . . . . . . . . . . . . . . . . . . . . . . . . . . . . . . . . . . . Crush 13 | . . . 4 5 . 4 . . . . . . . . . . . . . . . . . . . . . . . . . . . . . Escape Stasis 62 | . . . . . . . . . . 7 . . . . . . . . . . . . . 1 . . . . . . 18 . . 36 . Rewire 45 | . . . . . 8 . . . . . . . . . . . . . . . . . 26 . . . . . . . . . 11 . . Trap . | . . . . . . . . . . . . . . . . . . . . . . . . . . . . . . . . . . . . Miscellaneous . | . . . . . . . . . . . . . . . . . . . . . . . . . . . . . . . . . . . . Route ------- -11/Scrapyard -10/Materials (discovered 4 exits: *Mat x3 / [*Min]) -10/Mines (discovered 2 exits: *Mat x2) -9/Materials (discovered 4 exits: *Mat x2 / *Min / [*Sto]) -9/Mines (discovered 3 exits: *Mat x2 / *Exi) -9/Exiles (discovered 2 exits: *Min x2) -8/Mines (discovered 2 exits: *Mat x2) -8/Materials (discovered 3 exits: *Fac x3) -7/Factory (discovered 5 exits: *Fac x4 / *Low) -7/Waste -7/Factory (discovered 3 exits: *Fac / *Low x2) -7/Lower Caves -7/Lower Caves -7/Data Miner -6/Proximity Caves -6/Factory (discovered 6 exits: *Fac x2 / *Low x2 / *Ext x2) -6/Lower Caves -6/Lower Caves (discovered 2 exits: *Fac / *Zio) -6/Zion -5/Proximity Caves -5/Factory (discovered 5 exits: *Fac x3 / *Upp x2) -5/Upper Caves -5/Upper Caves (discovered 2 exits: Fac / *War) -5/Warlord -4/Proximity Caves -4/Factory (discovered 3 exits: *Res / *Upp x2) -4/Upper Caves -4/Upper Caves (discovered 2 exits: *Res / *Zhi) -4/Zhirov -3/Proximity Caves -3/Research (discovered 4 exits: *Res x2 / *Qua x2) -3/Quarantine -2/Research (discovered 2 exits: *Acc / *Tes) -2/Testing -1/Access -1/Command (discovered 1 exit: [Sur]) History --------- Turn | Location | Event 4 | -11/Scrapyard | Discovered new exit (range 3) 20 | -11/Scrapyard | Entered Materials 303 | -10/Materials | Build established: Mutant 758 | -10/Materials | Crushed by falling debris 867 | -10/Materials | Discovered new exit (range 15) 920 | -10/Materials | Discovered new exit (range 6) 1747 | -10/Materials | Discovered new exit (range 6) 1966 | -10/Materials | Repaired Lgt. Treads 1981 | -10/Materials | Discovered new exit (range 16) 2156 | -10/Materials | Entered Mines 2156 | -10/Mines | Accompanied by 1 ally 2168 | -10/Mines | Assembled infested the area 2172 | -10/Mines | Met a Derelict bent on vengeance 2484 | -10/Mines | Found a damaged Exp. Sensor Array with a note attached 2487 | -10/Mines | Found Prototype Device 3261 | -10/Mines | Discovered new exit (range 12) 3445 | -10/Mines | Discovered new exit (range 6) 3599 | -10/Mines | Entered Materials 3599 | -9/Materials | Accompanied by 2 allies 3599 | -9/Materials | Evolved 2 slots: Utility x2 3605 | -9/Materials | Led the pair of lost Derelicts to an unsafe place 3887 | -9/Materials | Repaired Hcp. Storage Unit 3915 | -9/Materials | Repaired Lgt. Treads 3942 | -9/Materials | Repaired Lgt. Treads 4180 | -9/Materials | Build established: Hauler-Mutant 4351 | -9/Materials | Discovered new exit (range 16) 4507 | -9/Materials | Identified Exp. Sensor Array 4663 | -9/Materials | Discovered new exit (range 15) 4765 | -9/Materials | Destroyed 9 combat bots 5052 | -9/Materials | Discovered new exit (range 15) 5520 | -9/Materials | Discovered new exit (range 15) 5732 | -9/Materials | Entered Mines 5764 | -9/Mines | A weapon hastily lodged in a ceiling crevice suddenly fell to the ground 5827 | -9/Mines | Received a Rocket Launcher from a helpful Derelict 5884 | -9/Mines | Discovered new exit (range 8) 5909 | -9/Mines | Met a Derelict shopkeep closing up shop 6101 | -9/Mines | Assisted by bots powering up and referring to "LRC-V3" 6365 | -9/Mines | Discovered new exit (range 13) 6853 | -9/Mines | Discovered new exit (range 5) 6931 | -9/Mines | Deemed a non-threat by the Exiles lab entrance 7101 | -9/Mines | Learned Materials terminal intel 7197 | -9/Mines | Entered Exiles 7197 | -9/Exiles | Found Exiles lab destroyed 7197 | -9/Exiles | Accompanied by 2 allies 7766 | -9/Exiles | Learned location of Zion (-6) 7860 | -9/Exiles | Discovered new exit (range 15) 8068 | -9/Exiles | Opened EX-Vault 8249 | -9/Exiles | Discovered new exit (range 15) 8291 | -9/Exiles | Entered Mines 8291 | -8/Mines | Accompanied by 4 allies 8588 | -8/Mines | Discovered new exit (range 8) 8678 | -8/Mines | Discovered new exit (range 8) 9761 | -8/Mines | Entered Materials 9761 | -8/Materials | Evolved 2 slots: Propulsion x1, Utility x1 9762 | -8/Materials | Loaded intel: 12 terminal locations 10097 | -8/Materials | Build established: Scavenger-Mutant 10900 | -8/Materials | Central database locked down 11014 | -8/Materials | Build established: Hauler-Mutant 12929 | -8/Materials | Discovered new exit (range 12) 15335 | -8/Materials | Discovered new exit (range 16) 15559 | -8/Materials | Repaired Exp. Sensor Array 15604 | -8/Materials | Repaired Gravmag System 16294 | -8/Materials | Discovered new exit (range 8) 16354 | -8/Materials | Entered Factory 16354 | -7/Factory | Evolved 2 slots: Propulsion x1, Utility x1 16771 | -7/Factory | Discovered new exit (range 15) 17837 | -7/Factory | Discovered new exit (range 14) 17902 | -7/Factory | Identified exit to Factory 18033 | -7/Factory | Repaired Arm. Huge Wheel 19560 | -7/Factory | Discovered new exit (range 8) 19568 | -7/Factory | Identified exit to Lower Caves 19645 | -7/Factory | Discovered exit to Factory (range 5) 21005 | -7/Factory | Discovered exit to Factory (range 15) 21091 | -7/Factory | Repaired Greatsword 22044 | -7/Factory | Build established: Mutant 22105 | -7/Factory | Sucked down chute 22105 | -7/Factory | Entered Waste 22105 | -7/Waste | The area was eerily silent 22140 | -7/Waste | Discovered new exit (range 13) 22331 | -7/Waste | Found Damper Plating 22349 | -7/Waste | Identified exit to Factory 22349 | -7/Waste | Entered Factory 22617 | -7/Factory | Discovered exit to Factory (range 6) 23841 | -7/Factory | Repaired Exp. Sensor Array 23941 | -7/Factory | Entered Lower Caves 24221 | -7/Lower Caves | Encountered a Warlord checkpoint 24244 | -7/Lower Caves | Identified exit to Lower Caves 24290 | -7/Lower Caves | Learned 4 Factory zone layouts 24322 | -7/Lower Caves | Entered another Lower Caves area 24542 | -7/Lower Caves | Learned Factory stockpile data 24545 | -7/Lower Caves | Encountered a Warlord checkpoint 24600 | -7/Lower Caves | Discovered new exit (range 17) 24606 | -7/Lower Caves | Identified exit to Data Miner 24636 | -7/Lower Caves | Learned location of Extension (-6) 24636 | -7/Lower Caves | Learned Extension trap positions 24636 | -7/Lower Caves | Learned Armory garrison access intel 24689 | -7/Lower Caves | Learned Factory stockpile data 24691 | -7/Lower Caves | Build established: Scout 24758 | -7/Lower Caves | Entered Data Miner 24758 | -7/Data Miner | Discovered new exit (range 6) 24764 | -7/Data Miner | Met Data Miner 24778 | -7/Data Miner | Learned location of Section 7 (-2) 24778 | -7/Data Miner | Acquired the access code to Warlord's prototype stash 24784 | -7/Data Miner | Received God Mode back door access code from Data Miner 24794 | -7/Data Miner | Identified exit to Proximity Caves 24794 | -7/Data Miner | Entered Proximity Caves 24856 | -6/Proximity Caves | Escorted by Enhanced Grunt 25012 | -6/Proximity Caves | Spotted B-75 Beast 25121 | -6/Proximity Caves | Build established: Hacker-Mutant 25617 | -6/Proximity Caves | Entered Factory 25617 | -6/Factory | Evolved 2 slots: Utility x2 25618 | -6/Factory | Identified exit to Extension 25808 | -6/Factory | Fabricated Field Propulsion Array (x2) 26462 | -6/Factory | Discovered new exit (range 9) 26464 | -6/Factory | Identified exit to Factory 27276 | -6/Factory | Discovered new exit (range 10) 27279 | -6/Factory | Identified exit to Lower Caves 27462 | -6/Factory | Fabricated Field Propulsion Array (x2) 27654 | -6/Factory | Discovered exit to Factory (range 22) 28467 | -6/Factory | Repaired Broken Cloaking Device 28519 | -6/Factory | Repaired Lgt. Fission Core 28578 | -6/Factory | Entered Lower Caves 28591 | -6/Lower Caves | Encountered a Warlord checkpoint 28755 | -6/Lower Caves | Build established: Derelict-Ninja 28819 | -6/Lower Caves | Discovered new exit (range 20) 28846 | -6/Lower Caves | Identified exit to Lower Caves 28959 | -6/Lower Caves | Entered another Lower Caves area 28965 | -6/Lower Caves | Discovered exit to Factory (range 10) 29067 | -6/Lower Caves | Encountered a Warlord checkpoint 29148 | -6/Lower Caves | Discovered new exit (range 14) 29153 | -6/Lower Caves | Identified exit to Zion 29183 | -6/Lower Caves | Entered Zion 29205 | -6/Zion | Found Prototype Device 29205 | -6/Zion | Identified Phasing AFG 29222 | -6/Zion | Discovered new exit (range 8) 29225 | -6/Zion | Identified exit to Proximity Caves 29255 | -6/Zion | Learned location of Warlord (-5) 29370 | -6/Zion | Learned location of Armory (-4) 29497 | -6/Zion | Learned location of Testing (-2) 29513 | -6/Zion | Received a hallucinogenic algorithm 29674 | -6/Zion | Entered Proximity Caves 29890 | -5/Proximity Caves | Discovered exit to Factory (range 8) 29966 | -5/Proximity Caves | Entered Factory 29966 | -5/Factory | Evolved 2 slots: Power x1, Propulsion x1 29974 | -5/Factory | Discovered new exit (range 9) 29986 | -5/Factory | Identified exit to Upper Caves 30022 | -5/Factory | Discovered new exit (range 14) 30319 | -5/Factory | Build established: Hacker-Mutant 30344 | -5/Factory | Discovered new exit (range 14) 30367 | -5/Factory | Local fabrication network quarantined 30518 | -5/Factory | Fabricated Exp. Signal Interpreter (x1) 31692 | -5/Factory | Spotted B-75 Beast 31911 | -5/Factory | Discovered new exit (range 8) 31913 | -5/Factory | Identified exit to Factory 33375 | -5/Factory | Repaired Exp. Sensor Array 34219 | -5/Factory | Entered Upper Caves 34228 | -5/Upper Caves | Learned Factory emergency access door positions 34379 | -5/Upper Caves | Learned Factory terminal intel 34393 | -5/Upper Caves | Discovered new exit (range 10) 34400 | -5/Upper Caves | Identified exit to Upper Caves 34523 | -5/Upper Caves | Encountered a Warlord checkpoint 34616 | -5/Upper Caves | Entered another Upper Caves area 35415 | -5/Upper Caves | Discovered new exit (range 5) 35417 | -5/Upper Caves | Identified exit to Warlord 35458 | -5/Upper Caves | Entered Warlord 35471 | -5/Warlord | Discovered new exit (range 8) 35474 | -5/Warlord | Identified exit to Proximity Caves 35564 | -5/Warlord | Visited the Vortex Lab 35569 | -5/Warlord | Found Prototype Energy Gun 35569 | -5/Warlord | Identified Vortex Shotgun 35586 | -5/Warlord | Warlord's base attacked by MAIN.C 35704 | -5/Warlord | Met Warlord 35711 | -5/Warlord | Opened Warlord's prototype stash 35731 | -5/Warlord | Found Prototype Device 35731 | -5/Warlord | Identified System Purifier 35735 | -5/Warlord | Found Prototype Device 35735 | -5/Warlord | Identified Exp. Cloaking Device 35738 | -5/Warlord | Found Prototype Reactor 35738 | -5/Warlord | Identified Vortex Chain Reactor 35889 | -5/Warlord | Opened side exit 35936 | -5/Warlord | Warlord forces counterattacked 36022 | -5/Warlord | Build established: Hacker-Sprinter 36051 | -5/Warlord | Spotted Executioner 36086 | -5/Warlord | Spotted Striker 36086 | -5/Warlord | Spotted Executioner 36086 | -5/Warlord | Entered Proximity Caves 36086 | -4/Proximity Caves | Accompanied by 1 ally 36167 | -4/Proximity Caves | Crushed by falling debris 36168 | -4/Proximity Caves | System corruption reached 10% 36184 | -4/Proximity Caves | Spotted B-86 Titan 36198 | -4/Proximity Caves | Lost 3 parts (1n2u) 36264 | -4/Proximity Caves | Received a Behemoth hack from an annoying Tinkerer 36672 | -4/Proximity Caves | Build established: Hacker-Mutant 37126 | -4/Proximity Caves | Build established: Hacker-Sprinter 37284 | -4/Proximity Caves | Learned 4 Research zone layouts 37320 | -4/Proximity Caves | Discovered exit to Factory (range 6) 37329 | -4/Proximity Caves | Entered Factory 37329 | -4/Factory | Evolved 2 slots: Propulsion x1, Utility x1 37330 | -4/Factory | Identified exit to Upper Caves 37332 | -4/Factory | Loaded intel: 19 terminal locations 37717 | -4/Factory | Repaired Field Propulsion Array 37866 | -4/Factory | Repaired Broken System Purifier? 37893 | -4/Factory | Discovered new exit (range 16) 37897 | -4/Factory | Identified exit to Research 38319 | -4/Factory | Discovered exit to Upper Caves (range 6) 38321 | -4/Factory | Entered Upper Caves 38352 | -4/Upper Caves | Spotted B-86 Titan 39492 | -4/Upper Caves | Learned Research trap positions 39510 | -4/Upper Caves | Discovered new exit (range 14) 39511 | -4/Upper Caves | Encountered a Warlord checkpoint 39541 | -4/Upper Caves | Identified exit to Upper Caves 39541 | -4/Upper Caves | Entered another Upper Caves area 39547 | -4/Upper Caves | Discovered exit to Research (range 8) 39552 | -4/Upper Caves | P-70 Sage assimilated allied RM-8GR(k) 39669 | -4/Upper Caves | Discovered new exit (range 15) 39703 | -4/Upper Caves | Identified exit to Zhirov 39704 | -4/Upper Caves | Entered Zhirov 39704 | -4/Zhirov | Discovered new exit (range 3) 39710 | -4/Zhirov | Met Zhirov 39746 | -4/Zhirov | Found Alien Artifact 39747 | -4/Zhirov | Identified Integrated Dissipator 39747 | -4/Zhirov | Installed Integrated Dissipator, increased core heat dissipation (+20) 39751 | -4/Zhirov | Found Alien Artifact 39751 | -4/Zhirov | Identified Transdimensional Reconstructor 39751 | -4/Zhirov | Warped through subspace 39772 | -4/Zhirov | Learned location of Quarantine (-3) 39772 | -4/Zhirov | Learned location of Command (-1) 39775 | -4/Zhirov | Zhirov requested help retrieving the SGEMP Prototype 39781 | -4/Zhirov | Identified exit to Proximity Caves 39782 | -4/Zhirov | Entered Proximity Caves 40003 | -3/Proximity Caves | Discovered exit to Research (range 13) 40025 | -3/Proximity Caves | Entered Research 40025 | -3/Research | Evolved 2 slots: Utility x2 40027 | -3/Research | Loaded intel: 51 trap records 40198 | -3/Research | Found Prototype Slashing Weapon 40198 | -3/Research | Identified Molecular Scythe 40208 | -3/Research | Discovered new exit (range 9) 40214 | -3/Research | Identified exit to Research 40342 | -3/Research | Repaired Exp. Sensor Array 40369 | -3/Research | Spotted B-86 Titan 40379 | -3/Research | Found Unknown Launcher 40397 | -3/Research | Identified Fusion Bomb Launcher 40447 | -3/Research | Identified exit to Quarantine 40496 | -3/Research | Discovered exit to Research (range 6) 40716 | -3/Research | Fabricated Imp. Q-thruster? 40809 | -3/Research | Fabricated Imp. Q-thruster? 40852 | -3/Research | Local fabrication network quarantined 41246 | -3/Research | Spotted B-90 Cyclops 41421 | -3/Research | Entered Quarantine 41433 | -3/Quarantine | Found Alien Slashing Weapon 41433 | -3/Quarantine | Identified Sigix Broadsword 41514 | -3/Quarantine | Spotted Alpha 7 41520 | -3/Quarantine | Found Prototype Hackware 41520 | -3/Quarantine | Identified Exp. System Shield 41553 | -3/Quarantine | Found Alien Artifact 41553 | -3/Quarantine | Identified Phase Armor 41586 | -3/Quarantine | Found Alien Artifact 41603 | -3/Quarantine | Found Alien Artifact 41603 | -3/Quarantine | Identified Subatomic Replicator 41609 | -3/Quarantine | Met incapacitated Sigix Warrior 41609 | -3/Quarantine | Lockdown squad dispatched 41612 | -3/Quarantine | Identified Core Reset Matrix 41671 | -3/Quarantine | First assault squad dispatched 41683 | -3/Quarantine | Spotted Lightning 41686 | -3/Quarantine | Spotted Lightning 41686 | -3/Quarantine | Spotted Lightning 41722 | -3/Quarantine | Discovered exit to Research (range 12) 41729 | -3/Quarantine | Entered Research 41729 | -2/Research | Warlord forces began assault on 0b10 41729 | -2/Research | Evolved 2 slots: Utility x2 41765 | -2/Research | Met up with Warlord 41812 | -2/Research | Build established: Wizard-Sprinter 41839 | -2/Research | Research machine network offline 41878 | -2/Research | Found Prototype Launcher 41878 | -2/Research | Identified Hellfire Missile Launcher 42064 | -2/Research | Discovered new exit (range 15) 42068 | -2/Research | Identified exit to Access 42170 | -2/Research | Borebot progress halted 42736 | -2/Research | Warlord invited to help at Command 42798 | -2/Research | Discovered new exit (range 4) 42799 | -2/Research | Identified exit to Testing 42799 | -2/Research | Spotted Striker 42799 | -2/Research | Entered Testing 42806 | -2/Testing | Spotted PY-VJNMLFCLF2 42816 | -2/Testing | Rewired PY-VJNMLFCLF2 43042 | -2/Testing | Spotted Striker 43079 | -2/Testing | Found EM Disruption Field 43183 | -2/Testing | Spotted PL-X4FOIXXTKJ 43185 | -2/Testing | Rewired PL-X4FOIXXTKJ 43192 | -2/Testing | Found Prototype Hackware 43192 | -2/Testing | Identified System Mapper 43212 | -2/Testing | Entered Access 43212 | -1/Access | Evolved 2 slots: Utility x2 43267 | -1/Access | Fabricated Exp. Signal Interpreter? 43447 | -1/Access | Identified exit to Command 44028 | -1/Access | Fabricated Exp. Propulsion Shielding (x1) 44074 | -1/Access | Fabricated Exp. Q-thruster (x1) 44212 | -1/Access | Local fabrication network quarantined 44462 | -1/Access | First assault squad dispatched 44485 | -1/Access | Incoming assault squad redirected 45397 | -1/Access | Entered Command 45825 | -1/Command | Spotted B-99 Colossus 45878 | -1/Command | Spotted B-99 Colossus 45893 | -1/Command | Disengaged cave seal 45899 | -1/Command | Spotted Alpha 7 45930 | -1/Command | Welcomed Warlord to Command 45933 | -1/Command | Spotted Executioner 45933 | -1/Command | Spotted Striker 45992 | -1/Command | Spotted Executioner 46017 | -1/Command | Spotted M Guard 46017 | -1/Command | Spotted M Guard 46017 | -1/Command | Spotted Combat Programmer 46041 | -1/Command | Discovered new exit (range 16) 46092 | -1/Command | Disengaged cave seal 46229 | -1/Command | Derelicts emerged from the dark tunnel 46934 | -1/Command | Spotted Combat Programmer 46935 | -1/Command | First assault squad dispatched 46941 | -1/Command | Met MAIN.C 46946 | -1/Command | 0b10 Conduit disabled 46951 | -1/Command | Incoming assault squad redirected 46957 | -1/Command | Incoming assault squad redirected 46971 | -1/Command | System corruption reached 10% 47008 | -1/Command | Core integrity fell below 50% 47011 | -1/Command | Core integrity fell below 20% 47013 | -1/Command | Destroyed by M Guard with Graviton Cannon Last Messages --------------- 47000_ Knocked back. 47000_ Impulse Thruster Array destroyed. 47000_ Dropped Lrg. Storage Unit. 47002_ EMDS Slug penetrates Reinforced Barrier. 47002_ Penetrated by EMDS Slug. 47003_ Imp. Q-thruster destroyed. 47003_ Imp. System Shield destroyed. 47004_ Penetrated by EMDS Slug. 47004_ Knocked back. 47005_ Imp. Q-thruster destroyed. 47005_ Cld. Q-thruster destroyed. 47005_ Dropped Exp. Q-thruster. 47005_ EMDS Slug penetrates Reinforced Barrier. 47007_ Imp. System Shield destroyed. 47007_ System Mapper destroyed. 47007_ Imp. Hacking Suite destroyed. 47007_ Exp. System Shield destroyed. 47007_ Penetrated by EMDS Slug. 47010_ EMDS Slug penetrates Reinforced Barrier. 47010_ Penetrated by EMDS Slug. Map ----- +----------------------------------------------------+ | ?????????????????????????????????????????????????? | | ?????????????????????????????????????????????????? | | ?????????????????????????????????????????????????? | | ?????????????????????????????????????????????????? | | ?????????????????????????????????????????????????? | | ?????????????????????????????????????????????????? | | ?????????????????????????????????????????????????? | | ????????????????????????#######################??? | | ????????????????????????# " " """" #??? | | ????????????????????????# "" #??? | | ????????????????????????# "" #### | | ????????????????????????# ! """ + | | ????????????????????????# ! " " + | | ????????????????????????# | | ????????????????????????# #### | | ????????????????????????# #??? | | ????????????????????????# MMM #??? | | ????????????????????????# MMM ""#??? | | ????????????????????????# p MMM """""""#??? | | ????????????????????????# Y """""""#??? | | ????????????????????????# Y """""""#??? | | ????????????????????????# " " #??? | | ????????????????????????# " "????? | | ????????????????????????" " """" "????? | | ????????????????????????" """ " " """"????? | | ????????????????????????"@ p " " " " ?????? | | ????????????????????????# " """""" " ?????? | | ????????????????????????# """ " """"""?????? | | ????????????????????????# """ " " ???????? | | ????????????????????????#################????????? | | ?????????????????????????????????????????????????? | | ?????????????????????????????????????????????????? | | ?????????????????????????????????????????????????? | | ?????????????????????????????????????????????????? | | ?????????????????????????????????????????????????? | | ?????????????????????????????????????????????????? | | ?????????????????????????????????????????????????? | | ?????????????????????????????????????????????????? | | ?????????????????????????????????????????????????? | | ?????????????????????????????????????????????????? | | ?????????????????????????????????????????????????? | | ?????????????????????????????????????????????????? | | ?????????????????????????????????????????????????? | | ?????????????????????????????????????????????????? | | ?????????????????????????????????????????????????? | | ?????????????????????????????????????????????????? | | ?????????????????????????????????????????????????? | | ?????????????????????????????????????????????????? | | ?????????????????????????????????????????????????? | | ?????????????????????????????????????????????????? | +----------------------------------------------------+ Best States ------------- Heat Dissipation 72 Energy Generation 55 Energy Capacity 700 Matter Stores 300 Matter Capacity 600 Sight Range 22 Robot Scan Range 30 Terrain Scan Density 10 ECM Strength 3 Jamming Range 14 Cloak Strength 4 Armor Coverage 1350 Resistance: EM 90 Propulsion Shielding 90 Evasion (%) 66 Recoil Reduction 3 Offensive Hacking 46 Defensive Hacking 52 Item Schematics ----------------- Exp. Sensor Array | -9/Materials | Scanalyzed Hcp. Storage Unit | -9/Materials | Hacked Adv. Signal Interpreter | -8/Mines | Hacked Mak. Sword | -8/Materials | Scanalyzed Field Propulsion Array | -7/Factory | Scanalyzed Gyrokinetic Inverter | -7/Factory | Scanalyzed Cld. VTOL Module | -7/Factory | Scanalyzed Imp. VTOL Module | -7/Factory | Scanalyzed Combat Drone Bay | -7/Data Miner | Free Lgt. Regenerative Plating | -7/Data Miner | Free Triangulator | -7/Data Miner | Free Exp. Terrain Scanner | -7/Data Miner | Free Exp. Terrain Scan Processor | -7/Data Miner | Free Exp. Targeting Computer | -7/Data Miner | Free Power Sword | -6/Factory | Hacked Cloaking Device | -6/Factory | Scanalyzed Imp. System Backup Module | -6/Factory | Scanalyzed Mic. Fission Core | -6/Factory | Hacked Exp. Signal Interpreter | -5/Factory | Hacked Exp. Propulsion Shielding | -5/Factory | Hacked Exp. Utility Shielding | -5/Factory | Hacked Vortex Chain Reactor | -4/Factory | Scanalyzed Cld. Antigrav System | -4/Factory | Scanalyzed Ionic Axe | -4/Factory | Scanalyzed Impulse Thruster Array | -4/Factory | Hacked System Purifier | -4/Factory | Scanalyzed Assault Drone Bay | -4/Zhirov | Free Exp. Heat Sink | -4/Zhirov | Free Exp. Optical Array | -4/Zhirov | Free Imp. Arc Thrower | -4/Zhirov | Free Fusion Bomb Launcher | -3/Research | Scanalyzed Cld. Nuclear Pulse Thruster | -3/Research | Scanalyzed Lgt. Quantum Reactor | -3/Research | Hacked Med. Regenerative Plating | -2/Testing | Hacked Exp. Q-thruster | -1/Access | Hacked Robot Schematics ------------------ S-27 Virus | -7/Factory | Hacked G-50 Soldier | -7/Data Miner | Free G-67 Veteran | -7/Data Miner | Free X-72 Disruptor | -7/Data Miner | Free H-66 Slayer | -7/Data Miner | Free I-36 Angel | -7/Data Miner | Free I-47 Archangel | -7/Data Miner | Free Fabricated ------------ Field Propulsion Array | x2 | -6/Factory Field Propulsion Array | x2 | -6/Factory Exp. Signal Interpreter | x1 | -5/Factory Imp. Q-thruster | x1 | -3/Research | Preloaded Imp. Q-thruster | x1 | -3/Research | Preloaded Exp. Signal Interpreter | x1 | -1/Access Exp. Propulsion Shielding | x1 | -1/Access Exp. Q-thruster | x1 | -1/Access Alien Tech Used ----------------- Integrated Dissipator Transdimensional Reconstructor Sigix Broadsword Phase Armor Subatomic Replicator Achievements -------------- Great Explorer Meet Your Maker Ultimate Loadout Challenges ------------ None Game ------ Seed ThrusterInertialCorpse Manual? 0 Play Time 08:51:14 Cumulative 243.0 hours Start 2021.01.20 @ 00:56:25 End 2021.01.22 @ 00:27:27 Sessions 7 Manual Loads 0 Difficulty Rogue Special Mode None Game No. 166 Rogue 166 Adventurer 0 Explorer 0 Win Type - Total 6 Types 6/0/0/0/0/0/0/0/0 Lore% 56 Gallery% 64 Achievement% 48 Wizard Run 0 Options --------- ASCII 1 Keyboard 1 Movement Arrows Keybinds 0 Fullscreen 1 Font 24/Proggy Map View 76x50 Tactical HUD 1 Map Filters NONE Filters NONE Steam 1 RUN: a8292c0b-11f3-462a-b0cb-e35e4174cb8f